bitfinex-derivatives/quotes_BTCF0:USTF0_20250121
["timestamp","ask_amount","ask_price","bid_price","bid_amount"]
[1737452079111,0.25666305,102430.0,102420.0,0.048874]
[1737452080394,0.61746305,102430.0,102410.0,0.43200598]
[1737452080599,0.048874,102420.0,102410.0,0.36090598]
[1737452080806,0.17374744,102420.0,102410.0,0.00010598]
[1737452081005,0.048874,102420.0,102410.0,0.00010598]
[1737452081208,0.048874,102420.0,102410.0,0.04898498]
[1737452081808,0.049874,102420.0,102410.0,0.04898498]
[1737452082407,0.050874,102420.0,102410.0,0.04898498]
[1737452083207,0.049874,102420.0,102410.0,0.04898498]
[1737452083508,0.050874,102420.0,102410.0,0.04898498]
[1737452084713,0.050874,102420.0,102410.0,0.14662692]
[1737452084913,0.002,102420.0,102410.0,0.50742692]
[1737452085410,0.050874,102420.0,102410.0,0.50742692]
[1737452085614,0.050874,102420.0,102410.0,0.14662692]
[1737452087406,0.049874,102420.0,102410.0,0.14662692]
[1737452087901,0.050874,102420.0,102410.0,0.14662692]
[1737452088515,0.049874,102420.0,102410.0,0.09774792]
[1737452088705,0.050874,102420.0,102410.0,0.00010598]
[1737452090612,0.53654744,102420.0,102400.0,0.3608]
[1737452090916,0.17375244,102410.0,102400.0,0.45844194]
[1737452091215,0.048879,102410.0,102400.0,0.409684]
[1737452092415,0.048879,102410.0,102400.0,0.3608]
[1737452093215,0.049879,102410.0,102400.0,0.3608]
[1737452093813,0.050879,102410.0,102400.0,0.3608]
[1737452094216,0.049879,102410.0,102400.0,0.3608]
[1737452094515,0.050879,102410.0,102400.0,0.3608]
[1737452094719,0.11754567,102410.0,102400.0,0.3608]
[1737452094911,0.048884,102400.0,102390.0,0.64125398]
[1737452095114,0.048884,102400.0,102390.0,0.28045398]
[1737452095312,0.119184,102400.0,102390.0,0.37810546]
[1737452096219,0.119184,102400.0,102390.0,0.80557213]
[1737452096416,0.120184,102400.0,102390.0,0.73890546]
[1737452097013,0.121184,102400.0,102390.0,1.02762253]
[1737452098108,0.121184,102400.0,102390.0,0.52028505]
[1737452098109,0.18793264,102400.0,102390.0,0.52028505]
[1737452098319,0.61793264,102400.0,102390.0,0.52028505]
[1737452098523,0.69123264,102400.0,102390.0,0.52028505]
[1737452100420,0.62456597,102400.0,102390.0,0.52028505]
[1737452100718,0.19046597,102400.0,102390.0,0.66683406]
[1737452101119,0.25713264,102400.0,102390.0,0.66683406]
[1737452101310,0.61793264,102400.0,102390.0,0.14654901]
[1737452101512,0.048888,102390.0,102380.0,0.81608555]
[1737452101827,0.048888,102390.0,102380.0,0.91374656]
[1737452102327,0.54302134,102390.0,102380.0,0.40639555]
[1737452102511,0.61372134,102390.0,102380.0,0.40639555]
[1737452102818,0.61472134,102390.0,102380.0,0.40639555]
[1737452103218,0.61472134,102390.0,102380.0,1e-08]
[1737452103421,0.91572134,102390.0,102380.0,1e-08]
[1737452103621,0.11556467,102370.0,102360.0,0.34735198]
[1737452103823,0.47636467,102370.0,102360.0,0.34735198]
[1737452104027,0.54303134,102370.0,102360.0,0.34735198]
[1737452104216,0.048907,102350.0,102340.0,0.76729573]
[1737452104413,0.11557367,102350.0,102340.0,0.76729573]
[1737452104720,0.11570029,102350.0,102340.0,0.76729573]
[1737452105022,0.048912,102340.0,102330.0,0.50606579]
[1737452105221,0.11557867,102340.0,102330.0,0.50606579]
[1737452105608,0.11557867,102340.0,102330.0,0.19418279]
[1737452105609,0.048912,102340.0,102330.0,0.19418279]
[1737452106014,0.048912,102340.0,102330.0,0.55498279]
[1737452106423,0.048912,102340.0,102330.0,0.55698279]
[1737452106816,0.048912,102340.0,102330.0,0.72136773]
[1737452107016,0.048912,102340.0,102330.0,0.65470106]
[1737452108825,0.048912,102340.0,102330.0,0.6646811]
[1737452110024,0.00012662,102350.0,102330.0,0.68243077]
[1737452110227,0.26295616,102360.0,102340.0,0.47637867]
[1737452110520,0.26295616,102360.0,102350.0,0.54637367]
[1737452111116,0.26295616,102360.0,102350.0,0.479707]
[1737452111313,0.2630367,102360.0,102350.0,0.479707]
[1737452111522,8.054e-05,102360.0,102350.0,0.57741095]
[1737452111721,8.054e-05,102360.0,102350.0,0.64407762]
[1737452112612,0.00108054,102360.0,102350.0,0.64407762]
[1737452113027,0.00208054,102360.0,102350.0,0.64407762]
[1737452113230,0.00208054,102360.0,102350.0,0.57741095]
[1737452113630,0.00108054,102360.0,102350.0,0.57741095]
[1737452113820,0.00208054,102360.0,102350.0,0.64407762]
[1737452115229,0.00108054,102360.0,102350.0,0.64407762]
[1737452115424,0.00208054,102360.0,102350.0,0.64407762]
[1737452115832,0.189586,102400.0,102380.0,0.048892]
[1737452116129,0.07696539,102410.0,102390.0,0.409688]
[1737452116429,0.05034639,102410.0,102400.0,0.409683]
[1737452116620,0.11701306,102410.0,102400.0,0.3608]
[1737452116822,0.048883,102400.0,102390.0,0.3608]
[1737452117028,0.11554967,102400.0,102390.0,0.3608]
[1737452117227,0.19104967,102400.0,102390.0,0.3608]
[1737452117731,0.19204967,102400.0,102390.0,0.3608]
[1737452118129,0.125383,102400.0,102390.0,0.3608]
[1737452118632,0.049883,102400.0,102390.0,0.50734901]
[1737452118833,0.050883,102400.0,102390.0,0.50734901]
[1737452119034,0.002,102400.0,102390.0,0.50734901]
[1737452120326,0.050883,102400.0,102390.0,0.50734901]
[1737452120532,0.11754967,102400.0,102390.0,0.45846101]
[1737452120727,0.11754967,102400.0,102390.0,0.3608]
[1737452121638,0.26297943,102400.0,102390.0,0.3608]
[1737452122538,0.19631276,102400.0,102390.0,0.3608]
[1737452122740,1.69631276,102400.0,102390.0,0.409688]
[1737452123629,1.76297943,102400.0,102390.0,0.3608]
[1737452124138,0.26297943,102400.0,102390.0,0.3608]
[1737452124830,0.048893,102380.0,102370.0,0.41953905]
[1737452125137,0.06666667,102380.0,102360.0,0.4453987]
[1737452125332,0.11556467,102370.0,102360.0,0.36226522]
[1737452125536,0.1156458,102370.0,102360.0,0.36226522]
[1737452126832,0.04997913,102370.0,102360.0,0.41116822]
[1737452127033,0.04997913,102370.0,102360.0,0.64592453]
[1737452127234,0.04997913,102370.0,102360.0,0.72255786]
[1737452127835,0.05097913,102370.0,102360.0,0.73155786]
[1737452128339,0.00108113,102370.0,102360.0,0.78922453]
[1737452128533,0.16535812,102400.0,102390.0,0.048888]
[1737452128844,0.11647412,102400.0,102390.0,0.47635467]
[1737452129134,0.11647412,102400.0,102390.0,0.64071098]
[1737452129342,0.11647412,102400.0,102390.0,0.85141098]
[1737452129531,0.11647412,102400.0,102390.0,0.85152008]
[1737452129730,0.11647412,102400.0,102390.0,0.81908589]
[1737452129731,0.11747412,102400.0,102390.0,0.81908589]
[1737452129945,0.001,102400.0,102390.0,0.75241922]
[1737452130135,0.001,102400.0,102390.0,0.78485341]
[1737452130437,0.048879,102410.0,102390.0,0.81908589]
[1737452130638,0.048879,102410.0,102400.0,0.3608]
[1737452131239,0.048879,102410.0,102400.0,0.45846101]
[1737452131835,0.049879,102410.0,102400.0,0.45846101]
[1737452132144,0.050879,102410.0,102400.0,0.3608]
[1737452132532,0.121179,102410.0,102400.0,0.3608]
[1737452132739,0.048883,102400.0,102390.0,0.3609091]
[1737452133039,0.31947142,102400.0,102390.0,0.0001091]
[1737452133442,1.81947142,102400.0,102390.0,0.0001091]
[1737452133641,0.048893,102380.0,102370.0,0.554797]
[1737452133844,0.048893,102380.0,102370.0,0.60301214]
[1737452134151,0.048893,102380.0,102370.0,0.65245801]
[1737452134446,0.048893,102380.0,102370.0,0.60356101]
[1737452134639,0.04897044,102380.0,102370.0,0.3608]
[1737452134839,0.12727044,102380.0,102370.0,0.3608]
[1737452136446,0.12827044,102380.0,102370.0,0.3608]
[1737452137438,0.05097044,102380.0,102370.0,0.50737809]
[1737452137843,0.00207744,102380.0,102370.0,0.50737809]
[1737452138049,0.00207744,102380.0,102370.0,0.63236651]
[1737452138642,0.00207744,102380.0,102370.0,0.50737809]
[1737452140763,0.00207744,102380.0,102370.0,0.63265647]
[1737452141458,0.00107744,102380.0,102370.0,0.58986508]
[1737452141953,0.1185897,102380.0,102370.0,0.7148535]
[1737452142353,0.1175897,102380.0,102370.0,0.7148535]
[1737452142549,0.1185897,102380.0,102370.0,0.7148535]
[1737452142961,0.1185897,102380.0,102370.0,0.58986508]
[1737452143254,0.1185897,102380.0,102370.0,0.59994306]
[1737452144058,0.17476839,102400.0,102390.0,0.048888]
[1737452144255,0.17476839,102400.0,102390.0,0.89547642]
[1737452144453,0.17476839,102400.0,102390.0,0.94382533]
[1737452144758,0.17476839,102400.0,102390.0,1.11170542]
[1737452145154,0.00146541,102420.0,102410.0,0.048879]
[1737452145454,0.47666866,102440.0,102430.0,0.048869]
[1737452146253,0.47666866,102440.0,102430.0,0.50731094]
[1737452146254,0.20360166,102440.0,102430.0,0.50731094]
[1737452146457,0.20360166,102440.0,102430.0,0.63229936]
[1737452146848,0.20360166,102440.0,102430.0,0.50731094]
[1737452147655,0.20460166,102440.0,102430.0,0.50731094]
[1737452148356,0.25346566,102440.0,102430.0,0.50731094]
[1737452148657,0.25446566,102440.0,102430.0,0.50731094]
[1737452149360,0.050864,102440.0,102430.0,0.50731094]
[1737452150053,0.048869,102430.0,102420.0,0.3608]
[1737452150260,0.048874,102420.0,102410.0,0.3608]
[1737452150454,0.17386242,102420.0,102410.0,0.40903786]
[1737452150651,0.048874,102420.0,102410.0,0.3608]
[1737452150852,0.26437,102430.0,102420.0,0.048874]
[1737452151250,0.048874,102420.0,102410.0,0.409678]
[1737452151456,0.049874,102420.0,102410.0,0.409678]
[1737452151756,0.050874,102420.0,102410.0,0.50731994]
[1737452151955,0.17586242,102420.0,102410.0,0.3608]
[1737452152161,0.17486242,102420.0,102410.0,0.3608]
[1737452152753,0.17386242,102420.0,102410.0,0.3608]
[1737452154262,0.63526828,102430.0,102420.0,0.048874]
[1737452154650,0.26437,102430.0,102420.0,0.409674]
[1737452154850,0.048866,102440.0,102430.0,0.048866]
[1737452155050,0.22526499,102450.0,102430.0,0.3608]
[1737452155256,0.28379529,102450.0,102440.0,0.409664]
[1737452155756,0.2823303,102450.0,102440.0,0.409664]
[1737452156663,0.272661,102450.0,102440.0,0.409664]
[1737452157057,0.273661,102450.0,102440.0,0.409664]
[1737452157564,0.273661,102450.0,102440.0,0.4093645]
[1737452157765,0.272661,102450.0,102440.0,0.4093645]
[1737452158064,0.273661,102450.0,102440.0,0.4093645]
[1737452158264,0.274661,102450.0,102440.0,0.4093645]
[1737452158560,0.048864,102440.0,102430.0,0.409668]
[1737452158760,0.17385242,102440.0,102430.0,0.409668]
[1737452158952,0.048864,102440.0,102430.0,0.048868]
[1737452159357,0.048869,102430.0,102420.0,0.409673]
[1737452159966,0.048869,102430.0,102420.0,0.048873]
[1737452160158,0.17385742,102430.0,102420.0,0.048873]
[1737452160456,0.048869,102430.0,102420.0,0.048873]
[1737452160656,0.049865,102440.0,102430.0,0.048869]
[1737452160856,0.049865,102440.0,102430.0,0.409669]
[1737452161259,0.17485342,102440.0,102420.0,0.409672]
[1737452161464,0.048869,102430.0,102420.0,0.409672]
[1737452161666,0.17485742,102430.0,102420.0,0.409672]
[1737452162075,0.17385742,102430.0,102420.0,0.3608]
[1737452162256,0.53465742,102430.0,102410.0,0.00146468]
[1737452162461,0.75416242,102420.0,102400.0,0.7011867]
[1737452162662,0.048879,102410.0,102400.0,0.3403867]
[1737452162857,0.048879,102410.0,102400.0,0.79881911]
[1737452163161,0.048879,102410.0,102400.0,0.43801911]
[1737452163356,0.17386742,102410.0,102400.0,0.3403867]
[1737452163560,0.17386742,102410.0,102400.0,0.2915047]
[1737452163873,0.53466742,102410.0,102400.0,0.2915047]
[1737452164168,0.17386742,102410.0,102400.0,0.2915047]
[1737452164371,0.53466742,102410.0,102400.0,0.2915047]
[1737452164670,0.53566742,102410.0,102400.0,0.2915047]
[1737452164871,0.410679,102410.0,102400.0,0.2915047]
[1737452165072,0.049879,102410.0,102400.0,0.2915047]
[1737452165569,0.049879,102410.0,102390.0,0.409685]
[1737452165570,0.048883,102400.0,102390.0,0.409685]
[1737452166762,0.048883,102400.0,102380.0,0.23323345]
[1737452166763,0.048888,102390.0,102380.0,0.23323345]
[1737452166961,0.75307642,102390.0,102380.0,0.23323345]
[1737452167161,0.628088,102390.0,102380.0,0.23323345]
[1737452167865,0.75407642,102390.0,102380.0,0.23323345]
[1737452168272,0.629088,102390.0,102380.0,0.23323345]
[1737452168480,0.630088,102390.0,102380.0,0.23323345]
[1737452168770,0.75507642,102390.0,102380.0,0.23323345]
[1737452169068,0.127388,102390.0,102380.0,0.28212645]
[1737452169270,0.127388,102390.0,102380.0,0.048893]
[1737452169472,0.048893,102380.0,102370.0,0.64292845]
[1737452169775,0.127389,102390.0,102380.0,0.048893]
[1737452170269,0.048893,102380.0,102370.0,0.64293045]
[1737452170475,0.17388142,102380.0,102370.0,0.64293045]
[1737452170671,0.17488142,102380.0,102370.0,0.23323345]
[1737452171264,0.17588142,102380.0,102370.0,0.23323345]
[1737452173371,0.17588142,102380.0,102370.0,0.28213145]
[1737452173575,0.050893,102380.0,102370.0,0.048898]
[1737452173776,0.002,102380.0,102370.0,0.63236651]
[1737452173976,0.002,102380.0,102370.0,0.58107809]
[1737452174174,0.002,102380.0,102370.0,0.70606651]
[1737452174372,0.17493472,102400.0,102390.0,0.048888]
[1737452174575,0.17493472,102400.0,102390.0,0.770488]
[1737452174775,0.17493472,102400.0,102390.0,0.89547642]
[1737452175089,0.17493472,102400.0,102390.0,0.86814901]
[1737452175878,0.17693472,102400.0,102390.0,0.86814901]
[1737452176875,0.002,102400.0,102390.0,0.86814901]
[1737452177678,0.12698842,102400.0,102390.0,0.86814901]
[1737452177989,0.002,102400.0,102390.0,0.86814901]
[1737452181092,0.17587142,102400.0,102390.0,0.3608]
[1737452181293,0.050883,102400.0,102390.0,0.409688]
[1737452181497,0.002,102400.0,102390.0,0.50734901]
[1737452182384,1e-06,102400.0,102390.0,0.93233743]
[1737452182585,0.14563953,102430.0,102420.0,0.048874]
[1737452182886,0.17493472,102440.0,102430.0,0.048869]
[1737452183093,0.17493472,102440.0,102430.0,0.60895742]
[1737452183401,0.17493472,102440.0,102430.0,0.90895742]
[1737452183592,0.20360166,102460.0,102450.0,0.12498842]
[1737452183788,0.20360166,102460.0,102450.0,0.89544842]
[1737452184092,0.20360166,102460.0,102450.0,0.96634842]
[1737452184288,0.20360166,102470.0,102460.0,0.048855]
[1737452184600,0.20360166,102470.0,102460.0,0.60894342]
[1737452184802,0.20360166,102470.0,102460.0,0.483955]
[1737452184997,0.20360166,102470.0,102460.0,0.70653772]
[1737452185593,0.20460166,102470.0,102460.0,0.6518493]
[1737452186090,0.20460166,102470.0,102460.0,0.77683772]
[1737452186297,0.23268761,102480.0,102460.0,1.07683772]
[1737452186504,0.65263308,102500.0,102490.0,0.17382942]
[1737452186702,0.13914418,102500.0,102490.0,0.89542942]
[1737452187097,0.13914418,102500.0,102490.0,0.99299515]
[1737452187397,0.13914418,102500.0,102490.0,0.86800673]
[1737452189206,0.048832,102510.0,102490.0,0.86800673]
[1737452189505,0.048832,102510.0,102500.0,0.3608]
[1737452190196,0.048832,102510.0,102500.0,0.45835621]
[1737452191302,0.048836,102500.0,102490.0,0.3608]
[1737452191501,0.17382442,102500.0,102490.0,0.3608]
[1737452191801,0.048836,102500.0,102490.0,0.3608]
[1737452191999,0.17382442,102500.0,102490.0,0.3608]
[1737452192709,0.048841,102490.0,102480.0,0.3608]
[1737452192899,0.409637,102500.0,102480.0,0.409645]
[1737452193202,0.048837,102500.0,102480.0,0.50721073]
[1737452193412,0.048837,102500.0,102490.0,0.048841]
[1737452193706,0.048837,102500.0,102490.0,0.409641]
[1737452194007,0.125232,102510.0,102500.0,0.048836]
[1737452194598,0.125232,102510.0,102500.0,0.409636]
[1737452195107,0.409627,102520.0,102500.0,0.50719221]
[1737452196310,0.458457,102520.0,102500.0,0.50719221]
[1737452196508,0.048831,102510.0,102500.0,0.50719221]
[1737452196896,0.17381942,102510.0,102500.0,0.3608]
[1737452197406,0.048836,102500.0,102490.0,0.409638]
[1737452197708,0.048836,102500.0,102490.0,0.50719421]
[1737452198608,0.17382442,102500.0,102490.0,0.409638]
[1737452198804,0.124036,102500.0,102490.0,0.409638]
[1737452199009,0.0752,102500.0,102490.0,0.50720373]
[1737452199407,0.048833,102510.0,102490.0,0.63219215]
[1737452199609,0.048833,102510.0,102500.0,0.409636]
[1737452200213,0.124029,102520.0,102510.0,0.048831]
[1737452201010,0.048831,102510.0,102500.0,0.409633]
[1737452201807,0.048836,102500.0,102490.0,0.409639]
[1737452202206,0.048836,102500.0,102490.0,0.50719521]
[1737452202713,0.17382442,102500.0,102480.0,0.3608]
[1737452202906,0.274641,102490.0,102480.0,0.3608]
[1737452203106,0.274641,102490.0,102480.0,0.409645]
[1737452203913,0.048836,102500.0,102490.0,0.048837]
[1737452204107,0.048836,102500.0,102490.0,0.409637]
[1737452204605,0.048836,102500.0,102490.0,0.50721225]
[1737452204812,0.048836,102500.0,102490.0,0.409637]
[1737452205305,0.40351942,102510.0,102480.0,0.4354]
[1737452205502,0.048841,102490.0,102480.0,0.409643]
[1737452205813,0.048841,102490.0,102480.0,0.50720873]
[1737452207915,0.048838,102500.0,102480.0,0.50720873]
[1737452208104,0.048838,102500.0,102490.0,0.04884]
[1737452208505,0.278532,102510.0,102500.0,0.048836]
[1737452208704,0.048836,102500.0,102490.0,0.57871325]
[1737452208909,0.278533,102510.0,102500.0,0.048836]
[1737452209116,0.048828,102520.0,102510.0,0.048831]
[1737452210305,0.048828,102520.0,102510.0,0.409631]
[1737452210505,0.048828,102520.0,102510.0,0.048831]
[1737452211110,0.048828,102520.0,102510.0,0.409631]
[1737452211305,0.048828,102520.0,102510.0,0.048831]
[1737452211608,0.048831,102510.0,102500.0,0.409634]
[1737452212010,0.048831,102510.0,102500.0,0.1463807]
[1737452212307,0.048831,102510.0,102500.0,0.5071807]
[1737452212706,0.048831,102510.0,102500.0,0.54136575]
[1737452212905,0.048831,102510.0,102500.0,0.5071807]
[1737452213107,0.29143064,102530.0,102520.0,0.048826]
[1737452213314,0.28158676,102530.0,102520.0,0.409626]
[1737452214623,0.40657518,102530.0,102520.0,0.3608]
[1737452215017,0.048826,102520.0,102510.0,0.048829]
[1737452215215,0.048826,102520.0,102510.0,0.409629]
[1737452216124,0.31961413,102530.0,102510.0,0.50716618]
[1737452216415,0.21343713,102530.0,102520.0,0.048826]
[1737452216723,0.048826,102520.0,102510.0,0.40963]
[1737452217129,0.048826,102520.0,102510.0,0.50716718]
[1737452218022,0.048826,102520.0,102510.0,0.55519027]
[1737452218212,0.21343813,102530.0,102520.0,0.048826]
[1737452219015,0.13713813,102530.0,102520.0,0.409626]
[1737452219230,0.13713813,102530.0,102520.0,0.55524173]
[1737452220515,0.26212655,102530.0,102520.0,0.40887855]
[1737452221123,0.13713813,102530.0,102520.0,0.40887855]
[1737452221315,0.26212655,102530.0,102520.0,0.40887855]
[1737452221517,0.048826,102520.0,102510.0,0.64837276]
[1737452221817,0.60791442,102520.0,102510.0,0.65377262]
[1737452222219,1.74711442,102520.0,102510.0,0.65377262]
[1737452222519,0.60791442,102520.0,102510.0,0.65377262]
[1737452222725,0.122126,102520.0,102510.0,0.60564723]
[1737452223023,1.622126,102520.0,102510.0,0.60564723]
[1737452223221,1.622126,102520.0,102510.0,0.34966721]
[1737452223524,0.122126,102520.0,102510.0,0.34966721]
[1737452223816,0.60791442,102520.0,102510.0,0.34966721]
[1737452225122,0.04884,102490.0,102480.0,0.40869076]
[1737452225315,0.04885,102470.0,102460.0,0.52471643]
[1737452225515,0.53463842,102470.0,102460.0,0.52471643]
[1737452225915,0.89543842,102470.0,102460.0,0.52325278]
[1737452226115,0.89555458,102470.0,102460.0,0.52325278]
[1737452226413,0.17395458,102470.0,102460.0,0.52325278]
[1737452226618,0.04896616,102470.0,102460.0,0.97264664]
[1737452226818,0.17395458,102470.0,102460.0,0.44939386]
[1737452227027,0.1836953,102470.0,102460.0,0.44939386]
[1737452227224,0.05870688,102470.0,102460.0,0.44939386]
[1737452227424,0.00011616,102470.0,102460.0,0.95664316]
[1737452227724,0.00011616,102470.0,102460.0,1.15353158]
[1737452227930,0.61002142,102510.0,102480.0,0.048845]
[1737452228121,0.17382742,102500.0,102490.0,0.048839]
[1737452228317,0.048839,102500.0,102490.0,0.048839]
[1737452228523,0.048843,102490.0,102480.0,0.048843]
[1737452228730,0.17383142,102490.0,102480.0,0.048843]
[1737452229027,0.048843,102490.0,102480.0,0.048843]
[1737452229216,0.53463142,102490.0,102480.0,0.048843]
[1737452229418,0.048845,102480.0,102470.0,0.480448]
[1737452229827,0.048845,102480.0,102470.0,0.57802325]
[1737452230218,0.458475,102500.0,102470.0,0.70301167]
[1737452230219,0.3608,102500.0,102470.0,0.70301167]
[1737452230423,0.048837,102500.0,102490.0,0.04884]
[1737452230925,0.17382542,102500.0,102490.0,0.04884]
[1737452231225,0.048837,102500.0,102490.0,0.04884]
[1737452231629,0.19461725,102500.0,102490.0,0.04884]
[1737452231831,0.31960567,102500.0,102490.0,0.04884]
[1737452232430,0.19461725,102500.0,102490.0,0.04884]
[1737452233223,0.31960567,102500.0,102480.0,0.4358]
[1737452233418,0.31960567,102500.0,102460.0,0.60683366]
[1737452233419,0.53462842,102490.0,102460.0,0.60683366]
[1737452233624,0.1462,102480.0,102460.0,0.70368896]
[1737452233925,0.32003642,102480.0,102470.0,0.04885]
[1737452234125,0.195048,102480.0,102470.0,0.04885]
[1737452234328,0.048848,102480.0,102470.0,0.04885]
[1737452234524,0.048841,102490.0,102480.0,0.048845]
[1737452234830,0.048841,102490.0,102480.0,0.120245]
[1737452235033,0.70241825,102500.0,102490.0,0.04884]
[1737452235332,0.34161825,102500.0,102490.0,0.04884]
[1737452235631,0.048845,102480.0,102470.0,0.048849]
[1737452235818,0.17383342,102480.0,102470.0,0.048849]
[1737452236017,0.65358025,102500.0,102480.0,0.04884]
[1737452236222,0.46660667,102500.0,102490.0,0.04884]
[1737452236432,0.19461825,102500.0,102490.0,0.04884]
[1737452236627,0.19461825,102500.0,102490.0,0.12024]
[1737452236628,0.048838,102500.0,102490.0,0.12024]
[1737452237330,0.17382642,102500.0,102490.0,0.12024]
[1737452237531,0.04884,102490.0,102480.0,0.048843]
[1737452237728,0.31942842,102490.0,102480.0,0.048843]
[1737452238032,0.048848,102480.0,102470.0,0.048848]
[1737452238229,0.17383642,102480.0,102470.0,0.048848]
[1737452238428,0.17383642,102480.0,102460.0,0.480454]
[1737452238429,0.04885,102470.0,102460.0,0.480454]
[1737452238626,0.17383842,102470.0,102460.0,0.480454]
[1737452238933,0.17383842,102470.0,102460.0,0.4316]
[1737452239530,0.17383842,102470.0,102450.0,0.8158167]
[1737452239531,0.53463842,102470.0,102450.0,0.8158167]
[1737452239740,0.048855,102460.0,102450.0,0.8158167]
[1737452242335,0.48578842,102470.0,102460.0,0.048853]
[1737452242336,0.048852,102470.0,102460.0,0.048853]
[1737452242528,0.048852,102470.0,102460.0,0.409653]
[1737452242731,0.17384042,102470.0,102460.0,0.409653]
[1737452243025,0.17384042,102470.0,102460.0,0.3608]
[1737452243430,0.048855,102460.0,102450.0,0.7669597]
[1737452243631,0.17384342,102460.0,102450.0,0.7669597]
[1737452243833,0.048855,102460.0,102450.0,0.7669597]
[1737452244431,0.13622617,102460.0,102450.0,0.3608]
[1737452246029,0.26121459,102460.0,102450.0,0.3608]
[1737452246221,0.13622617,102460.0,102450.0,0.3608]
[1737452246623,0.13622617,102460.0,102450.0,0.40966]
[1737452247827,0.13622617,102460.0,102450.0,0.3608]
[1737452248427,0.26121459,102460.0,102450.0,0.3608]
[1737452248639,0.048864,102440.0,102430.0,0.4308]
[1737452248831,0.17385242,102440.0,102430.0,0.07]
[1737452249034,0.048864,102440.0,102430.0,0.118869]
[1737452249337,0.048864,102440.0,102430.0,0.479669]
[1737452249535,0.048864,102440.0,102430.0,0.57729188]
[1737452250038,0.048864,102440.0,102430.0,0.479669]
[1737452250241,0.049864,102440.0,102430.0,0.4398]
[1737452250435,0.17485242,102440.0,102430.0,0.4398]
[1737452250736,0.17485242,102440.0,102430.0,0.079]
[1737452251038,0.53465242,102440.0,102420.0,0.67846489]
[1737452251236,0.048869,102430.0,102420.0,0.80303889]
[1737452252334,0.17385742,102430.0,102420.0,0.61066489]
[1737452252541,0.53465742,102430.0,102420.0,0.17416489]
[1737452252834,0.31505742,102430.0,102420.0,0.17416489]
[1737452253027,0.05871504,102440.0,102430.0,0.048869]
[1737452253225,0.1164949,102440.0,102430.0,0.481969]
[1737452253441,0.1164949,102440.0,102430.0,0.75655742]
[1737452253643,0.1164949,102440.0,102430.0,0.72920141]
[1737452254050,0.0026949,102440.0,102430.0,0.85418983]
[1737452254343,0.14565646,102450.0,102440.0,0.048864]
[1737452254543,0.14565646,102450.0,102440.0,0.53465242]
[1737452254938,0.14565646,102450.0,102440.0,0.6322753]
[1737452255841,0.14565646,102450.0,102440.0,0.50728688]
[1737452256033,0.08745582,102450.0,102440.0,0.50728688]
[1737452256240,0.08745582,102450.0,102440.0,0.6322753]
[1737452256539,0.14565646,102460.0,102440.0,0.6322753]
[1737452256754,0.22229179,102470.0,102460.0,0.048855]
[1737452256958,0.22229179,102470.0,102460.0,0.53464342]
[1737452257153,0.22229179,102470.0,102460.0,0.60394342]
[1737452257353,0.22229179,102470.0,102460.0,0.70153772]
[1737452257553,0.22229179,102470.0,102460.0,0.5765493]
[1737452257751,0.27114179,102470.0,102460.0,0.5765493]
[1737452258256,0.34304179,102470.0,102460.0,0.5765493]
[1737452259561,0.34304179,102470.0,102460.0,0.2157493]
[1737452259752,0.34304179,102470.0,102460.0,0.4301]
[1737452260148,0.12075,102470.0,102460.0,0.4301]
[1737452260345,0.12075,102470.0,102460.0,0.0693]
[1737452260659,0.12075,102470.0,102450.0,0.409658]
[1737452260961,0.12075,102470.0,102450.0,0.5072523]
[1737452261168,0.12075,102470.0,102450.0,0.6264063]
[1737452261660,0.048855,102460.0,102450.0,0.3608]
[1737452261859,0.24734342,102460.0,102450.0,0.3608]
[1737452262359,0.122355,102460.0,102450.0,0.3608]
[1737452263646,0.19848842,102460.0,102440.0,0.409661]
[1737452263849,0.04886,102450.0,102440.0,0.45774246]
[1737452264051,0.04886,102450.0,102440.0,0.45840382]
[1737452264360,0.04886,102450.0,102440.0,0.3608]
[1737452264658,0.04886,102450.0,102440.0,0.53486844]
[1737452265359,0.04886,102450.0,102440.0,0.17406844]
[1737452265860,0.04886,102450.0,102440.0,0.22293244]
[1737452266052,0.122357,102460.0,102450.0,0.04886]
[1737452267858,0.25693529,102460.0,102450.0,0.04886]
[1737452268058,0.04886,102450.0,102430.0,0.7669597]
[1737452268256,0.60315242,102440.0,102430.0,0.4061597]
[1737452268456,0.67095242,102440.0,102430.0,0.4061597]
[1737452269067,0.31015242,102440.0,102430.0,0.4061597]
[1737452269254,0.31015242,102440.0,102430.0,0.4550287]
[1737452270062,0.31015242,102440.0,102430.0,0.4061597]
[1737452270257,0.67095242,102440.0,102430.0,0.4061597]
[1737452270565,0.185164,102440.0,102430.0,0.4550287]
[1737452270769,0.0685,102440.0,102430.0,0.8158287]
[1737452270963,0.0685,102440.0,102430.0,0.91345158]
[1737452271156,0.0685,102440.0,102430.0,0.50729188]
[1737452272168,0.0685,102440.0,102430.0,0.5554282]
[1737452272668,0.17478776,102450.0,102430.0,0.68041662]
[1737452272866,0.17478776,102450.0,102440.0,0.409664]
[1737452273058,0.22364776,102450.0,102440.0,0.409664]
[1737452273263,0.22364776,102450.0,102440.0,0.45780128]
[1737452273459,0.22364776,102450.0,102440.0,0.62881939]
[1737452274066,0.17478776,102450.0,102440.0,0.62881939]
[1737452274456,0.43584476,102460.0,102440.0,0.62881939]
[1737452274655,0.31958776,102460.0,102450.0,0.40966]
[1737452274862,0.17478776,102460.0,102450.0,0.40966]
[1737452275060,0.17478776,102460.0,102450.0,0.45777556]
[1737452275260,0.17478776,102460.0,102450.0,0.6803678]
[1737452275462,0.06288776,102460.0,102450.0,0.6803678]
[1737452275958,0.12100607,102490.0,102450.0,0.6803678]
[1737452275959,0.00146407,102490.0,102480.0,0.048845]
[1737452276165,0.00146407,102490.0,102480.0,0.770445]
[1737452276663,0.00146407,102490.0,102480.0,0.86804882]
[1737452277863,0.27831905,102500.0,102480.0,0.86804882]
[1737452278066,0.20391905,102500.0,102490.0,0.53462842]
[1737452278565,0.20391905,102500.0,102490.0,0.63891061]
[1737452278765,0.20391905,102500.0,102490.0,0.73648586]
[1737452278963,0.20391905,102520.0,102510.0,0.048831]
[1737452279164,0.20391905,102520.0,102510.0,0.770431]
[1737452279567,0.20391905,102520.0,102510.0,0.86799673]
[1737452280662,0.25274505,102520.0,102510.0,0.770431]
[1737452281164,0.25274505,102520.0,102510.0,0.8679777]
[1737452281572,0.73853347,102520.0,102510.0,0.0975467]